lending/lending_fUSD_20250131
["ID","MTS","AMOUNT","RATE_DAILY","PERIOD"]
[351006533,1738282265628,-934.51,0.00019452,3]
[351006535,1738282265637,-500.0,0.00019452,3]
[351006537,1738282265647,-584.56,0.00019452,3]
[351006540,1738282265657,-798.6,0.00019452,3]
[351006542,1738282265666,-534.79,0.00019452,3]
[351006544,1738282265678,-500.0,0.00019452,3]
[351006546,1738282265692,-554.15,0.00019452,3]
[351006548,1738282265703,-500.0,0.00019452,3]
[351006550,1738282265714,-1096.25,0.00019452,3]
[351006552,1738282265727,-500.0,0.00019452,3]
[351006554,1738282265738,-500.0,0.00019452,3]
[351006556,1738282265748,-500.0,0.00019452,3]
[351006558,1738282265758,-1672.85,0.00019452,3]
[351006560,1738282265768,-500.0,0.00019452,3]
[351006562,1738282265777,-500.0,0.00019452,3]
[351006563,1738282265786,-500.0,0.00019452,3]
[351006564,1738282265796,-1656.5,0.00019452,3]
[351006566,1738282265806,-653.46,0.00019452,3]
[351006568,1738282265815,-500.0,0.00019452,3]
[351006569,1738282265825,-500.0,0.00019452,3]
[351006571,1738282265835,-500.0,0.00019452,3]
[351006572,1738282265844,-1008.68,0.00019452,3]
[351006574,1738282265855,-538.56,0.00019452,3]
[351006575,1738282265865,-500.0,0.00019452,3]
[351006577,1738282265875,-500.0,0.00019452,3]
[351006578,1738282265885,-500.0,0.00019452,3]
[351006580,1738282265895,-500.0,0.00019452,3]
[351006582,1738282265905,-500.0,0.00019452,3]
[351006583,1738282265915,-500.0,0.00019452,3]
[351006585,1738282265925,-539.56,0.00019452,3]
[351006587,1738282265935,-500.0,0.00019452,3]
[351006588,1738282265945,-511.16,0.00019452,3]
[351006589,1738282265955,-500.0,0.00019452,3]
[351006591,1738282265965,-896.35,0.00019452,3]
[351006592,1738282265975,-1398.83,0.00019452,3]
[351006593,1738282265984,-1012.74,0.00019452,3]
[351006595,1738282265994,-1843.2,0.00019452,3]
[351006597,1738282266004,-662.04,0.00019452,3]
[351006598,1738282266013,-500.0,0.00019452,3]
[351006599,1738282266022,-500.0,0.00019452,3]
[351006601,1738282266031,-638.46,0.00019452,3]
[351006602,1738282266041,-500.0,0.00019452,3]
[351006604,1738282266050,-556.6,0.00019452,3]
[351006605,1738282266060,-782.86,0.00019452,3]
[351006607,1738282266071,-822.38,0.00019452,3]
[351006608,1738282266081,-928.31,0.00019452,3]
[351006610,1738282266090,-500.0,0.00019452,3]
[351006611,1738282266100,-1846.85,0.00019452,3]
[351006613,1738282266110,-500.0,0.00019452,3]
[351006614,1738282266120,-564.2,0.00019452,3]
[351006616,1738282266130,-1509.54,0.00019452,3]
[351006617,1738282266140,-1427.97,0.00019452,3]
[351006619,1738282266150,-2352.35,0.00019452,3]
[351006621,1738282266160,-500.0,0.00019452,3]
[351006622,1738282266170,-1138.48,0.00019452,3]
[351006624,1738282266180,-1066.51,0.00019452,3]
[351006625,1738282266191,-2256.51,0.00019452,3]
[351006627,1738282266200,-500.0,0.00019452,3]
[351006629,1738282266210,-500.0,0.00019452,3]
[351006630,1738282266219,-500.0,0.00019452,3]
[351006632,1738282266229,-597.51,0.00019452,3]
[351006634,1738282266239,-1590.7,0.00019452,3]
[351006635,1738282266248,-563.68,0.00019452,3]
[351006637,1738282266259,-622.97,0.00019452,3]
[351006639,1738282266271,-1081.95,0.00019452,3]
[351006641,1738282266281,-2884.53,0.00019452,3]
[351006642,1738282266291,-500.0,0.00019452,3]
[351006644,1738282266302,-500.0,0.00019452,3]
[351006646,1738282266311,-1416.91,0.00019452,3]
[351006647,1738282266322,-1371.49,0.00019452,3]
[351006649,1738282266331,-1073.89,0.00019452,3]
[351006651,1738282266343,-500.0,0.00019452,3]
[351006652,1738282266353,-842.43,0.00019452,3]
[351006654,1738282266363,-502.3201803,0.00019452,3]
[351006656,1738282266373,-1635.29,0.00019452,3]
[351006657,1738282266383,-740.18,0.00019452,3]
[351006659,1738282266392,-576.34,0.00019452,3]
[351006661,1738282266402,-2283.25,0.00019452,3]
[351006663,1738282266412,-500.0,0.00019452,3]
[351006664,1738282266422,-500.0,0.00019452,3]
[351006666,1738282266431,-959.67,0.00019452,3]
[351006667,1738282266440,-500.0,0.00019452,3]
[351006669,1738282266450,-2771.83,0.00019452,3]
[351006671,1738282266461,-500.0,0.00019452,3]
[351006673,1738282266470,-897.59,0.00019452,3]
[351006674,1738282266481,-1920.8,0.00019452,3]
[351006676,1738282266491,-500.0,0.00019452,3]
[351006678,1738282266501,-253.99689761,0.00019452,3]
[351006688,1738282266721,-500.0,0.00019452,3]
[351006691,1738282266733,-1414.22,0.00019452,3]
[351006693,1738282266744,-1975.06,0.00019452,3]
[351006695,1738282266754,-500.0,0.00019452,3]
[351006697,1738282266764,-513.27948799,0.00019452,3]
[351006699,1738282266774,-1901.04,0.00019452,3]
[351006701,1738282266783,-670.17,0.00019452,3]
[351006703,1738282266792,-754.88,0.00019452,3]
[351006705,1738282266802,-500.0,0.00019452,3]
[351006707,1738282266812,-500.0,0.00019452,3]
[351006709,1738282266821,-2169.06,0.00019452,3]
[351006711,1738282266831,-500.0,0.00019452,3]
[351006713,1738282266840,-1026.29,0.00019452,3]
[351006715,1738282266850,-1411.1,0.00019452,3]
[351006717,1738282266860,-500.0,0.00019452,3]
[351006719,1738282266869,-629.96938566,0.00019452,3]
[351006721,1738282266879,-500.0,0.00019452,3]
[351006723,1738282266889,-2435.7,0.00019452,3]
[351006725,1738282266899,-500.0,0.00019452,3]
[351006727,1738282266908,-500.0,0.00019452,3]
[351006729,1738282266918,-500.0,0.00019452,3]
[351006731,1738282266928,-500.0,0.00019452,3]
[351006733,1738282266937,-500.0,0.00019452,3]
[351006735,1738282266947,-1355.55,0.00019452,3]
[351006737,1738282266957,-500.0,0.00019452,3]
[351006739,1738282266968,-2403.5,0.00019452,3]
[351006741,1738282266978,-766.18,0.00019452,3]
[351006743,1738282266987,-2601.33,0.00019452,3]
[351006745,1738282266998,-1420.81,0.00019452,3]
[351006747,1738282267008,-1929.28,0.00019452,3]
[351006749,1738282267018,-500.0,0.00019452,3]
[351006751,1738282267028,-500.0,0.00019452,3]
[351006753,1738282267038,-500.0,0.00019452,3]
[351006755,1738282267048,-562.54842609,0.00019452,3]
[351006757,1738282267058,-1742.12,0.00019452,3]
[351006759,1738282267069,-937.29,0.00019452,3]
[351006761,1738282267078,-500.0,0.00019452,3]
[351006763,1738282267088,-500.0,0.00019452,3]
[351006765,1738282267098,-500.0,0.00019452,3]
[351006767,1738282267108,-2173.92,0.00019452,3]
[351006769,1738282267118,-4900.31,0.00019452,3]
[351006771,1738282267128,-500.0,0.00019452,3]
[351006773,1738282267138,-500.0,0.00019452,3]
[351006775,1738282267148,-983.31,0.00019452,3]
[351006777,1738282267157,-1549.81,0.00019452,3]
[351006779,1738282267168,-1687.49,0.00019452,3]
[351006790,1738282267263,-1981.35,0.00019452,3]
[351006792,1738282267274,-500.0,0.00019452,3]
[351006794,1738282267283,-3405.55,0.00019452,3]
[351006796,1738282267292,-500.0,0.00019452,3]
[351006798,1738282267302,-500.0,0.00019452,3]
[351006800,1738282267311,-1874.23,0.00019452,3]
[351006802,1738282267321,-500.0,0.00019452,3]
[351006804,1738282267330,-466.40020443,0.00019452,3]
[351006806,1738282267340,-1605.69,0.00019452,3]
[351006808,1738282267349,-4106.66,0.00019452,3]
[351006810,1738282267359,-2035.27,0.00019452,3]
[351006812,1738282267370,-1212.59,0.00019452,3]
[351006814,1738282267380,-2830.05,0.00019452,3]
[351006817,1738282267390,-261.2858198,0.00019452,3]
[351006819,1738282267400,-500.0,0.00019452,3]
[351006821,1738282267410,-500.0,0.00019452,3]
[351006822,1738282267419,-902.88,0.00019452,3]
[351006824,1738282267429,-500.0,0.00019452,3]
[351006826,1738282267438,-516.71,0.00019452,3]
[351006828,1738282267447,-2210.37,0.00019452,3]
[351006830,1738282267457,-500.0,0.00019452,3]
[351006832,1738282267466,-2076.87,0.00019452,3]
[351006834,1738282267475,-571.53787059,0.00019452,3]
[351006836,1738282267485,-2234.81,0.00019452,3]
[351006838,1738282267494,-1622.6,0.00019452,3]
[351006840,1738282267503,-10220.82,0.00019452,3]
[351006842,1738282267512,-531.17,0.00019452,3]
[351006844,1738282267521,-500.0,0.00019452,3]
[351006846,1738282267530,-863.77,0.00019452,3]
[351006848,1738282267539,-500.0,0.00019452,3]
[351006850,1738282267549,-2883.15,0.00019452,3]
[351006852,1738282267559,-941.04,0.00019452,3]
[351006855,1738282267569,-500.0,0.00019452,3]
[351006856,1738282267578,-500.0,0.00019452,3]
[351006858,1738282267587,-823.04,0.00019452,3]
[351006860,1738282267597,-3608.15,0.00019452,3]
[351006862,1738282267608,-3099.8,0.00019452,3]
[351006865,1738282267618,-1764.41,0.00019452,3]
[351006866,1738282267627,-500.0,0.00019452,3]
[351006868,1738282267637,-4082.94,0.00019452,3]
[351006870,1738282267646,-963.08,0.00019452,3]
[351006873,1738282267655,-1203.07,0.00019452,3]
[351006875,1738282267665,-500.0,0.00019452,3]
[351006876,1738282267674,-1247.05,0.00019452,3]
[351006879,1738282267690,-500.0,0.00019452,3]
[351006881,1738282267700,-500.0,0.00019452,3]
[351006883,1738282267709,-1334.12,0.00019452,3]
[351006885,1738282267718,-2928.0,0.00019452,3]
[351006887,1738282267729,-1032.12,0.00019452,3]
[351006889,1738282267738,-3130.5,0.00019452,3]
[351006891,1738282267747,-2333.96,0.00019452,3]
[351006893,1738282267757,-500.0,0.00019452,3]
[351006895,1738282267766,-500.0,0.00019452,3]
[351006897,1738282267776,-541.13845703,0.00019452,3]
[351006899,1738282267785,-500.0,0.00019452,3]
[351006901,1738282267795,-1140.24,0.00019452,3]
[351006903,1738282267805,-500.0,0.00019452,3]
[351006905,1738282267814,-8700.96,0.00019452,3]
[351006907,1738282267823,-533.4,0.00019452,3]
[351006909,1738282267833,-2435.8,0.00019452,3]
[351006911,1738282267842,-1937.17,0.00019452,3]
[351006913,1738282267853,-4125.7,0.00019452,3]
[351006915,1738282267862,-3473.9,0.00019452,3]
[351006917,1738282267872,-500.0,0.00019452,3]
[351006919,1738282267881,-2256.99,0.00019452,3]
[351006921,1738282267891,-2769.31,0.00019452,3]
[351006922,1738282267900,-500.0,0.00019452,3]
[351006923,1738282267910,-2215.09,0.00019452,3]
[351006924,1738282267918,-702.17,0.00019452,3]
[351006925,1738282267928,-500.0,0.00019452,3]
[351006926,1738282267937,-567.75,0.00019452,3]
[351006927,1738282267947,-980.01,0.00019452,3]
[351006928,1738282267956,-500.0,0.00019452,3]
[351006930,1738282267965,-861.89,0.00019452,3]
[351006932,1738282267975,-802.25,0.00019452,3]
[351006934,1738282267984,-1299.51,0.00019452,3]
[351006936,1738282267993,-500.0,0.00019452,3]
[351006938,1738282268003,-1124.58,0.00019452,3]
[351006940,1738282268013,-500.0,0.00019452,3]
[351006942,1738282268022,-500.0,0.00019452,3]
[351006944,1738282268031,-500.0,0.00019452,3]
[351006946,1738282268041,-1898.4,0.00019452,3]
[351006948,1738282268050,-1048.65,0.00019452,3]
[351006950,1738282268060,-857.57,0.00019452,3]
[351006952,1738282268070,-500.0,0.00019452,3]
[351006954,1738282268081,-1444.62,0.00019452,3]
[351006956,1738282268091,-4121.1,0.00019452,3]
[351006958,1738282268100,-5726.18,0.00019452,3]
[351006960,1738282268109,-574.11,0.00019452,3]
[351006962,1738282268119,-4490.66,0.00019452,3]
[351006964,1738282268128,-596.02,0.00019452,3]
[351006966,1738282268139,-2338.3,0.00019452,3]
[351006968,1738282268148,-852.81,0.00019452,3]
[351006969,1738282268157,-280.22371811,0.00019452,3]
[351006971,1738282268167,-1971.77,0.00019452,3]
[351006973,1738282268177,-500.0,0.00019452,3]
[351006975,1738282268186,-913.55,0.00019452,3]
[351006977,1738282268196,-5021.87,0.00019452,3]
[351006979,1738282268205,-691.02,0.00019452,3]
[351006981,1738282268214,-500.0,0.00019452,3]
[351006983,1738282268223,-2455.72,0.00019452,3]
[351006985,1738282268232,-754.24,0.00019452,3]
[351006987,1738282268242,-601.18,0.00019452,3]
[351006989,1738282268251,-814.43,0.00019452,3]
[351006991,1738282268261,-518.39,0.00019452,3]
[351006993,1738282268271,-302.01607765,0.00019452,3]
[351006995,1738282268280,-11668.16,0.00019452,3]
[351006997,1738282268289,-500.0,0.00019452,3]
[351006999,1738282268298,-2758.15,0.00019452,3]
[351007001,1738282268307,-3474.02,0.00019452,3]
[351007003,1738282268316,-1672.19,0.00019452,3]
[351007005,1738282268326,-1886.75,0.00019452,3]
[351007007,1738282268336,-500.0,0.00019452,3]
[351007009,1738282268347,-2165.14,0.00019452,3]
[351007011,1738282268361,-533.52,0.00019452,3]
[351007013,1738282268372,-596.12943768,0.00019452,3]
[351007067,1738282268898,-2008.65056232,0.00019452,3]
[351007069,1738282268908,-399.38357932,0.00019452,3]
[351007113,1738282269408,-6127.24,0.00019178,2]
[351007115,1738282269418,-500.0,0.00019314,2]
[351007117,1738282269427,-500.0,0.00019314,2]
[351007119,1738282269437,-500.0,0.00019314,2]
[351007121,1738282269447,-500.0,0.00019314,2]
[351007123,1738282269457,-500.0,0.00019314,2]
[351007125,1738282269467,-500.0,0.00019314,2]
[351007127,1738282269477,-6127.24,0.00019315,3]
[351007129,1738282269487,-1801.99642068,0.00019452,3]
[351007132,1738282269504,-2773.8,0.00019452,3]
[351007134,1738282269514,-500.0,0.00019452,3]
[351007136,1738282269524,-1133.48,0.00019452,3]
[351007138,1738282269534,-18160.54,0.00019452,3]
[351007141,1738282269545,-146.57090078,0.00019452,3]
[351007143,1738282269558,-3043.40956272,0.00019452,3]
[351007147,1738282269590,160.0,0.00023,120]
[351007158,1738282269690,-500.0,0.00019314,2]
[351007160,1738282269702,-296.20654479,0.00019452,3]
[351007162,1738282269715,-340.3400245,0.00019452,3]
[351007164,1738282269730,-2320.94296721,0.00019452,3]
[351007167,1738282269742,-500.0,0.00019452,3]
[351007169,1738282269752,-3111.56,0.00019452,3]
[351007171,1738282269764,-500.0,0.00019452,3]
[351007173,1738282269775,-500.0,0.00019452,3]
[351007175,1738282269785,-807.76085334,0.00019452,3]
[351007179,1738282269807,-1067.41068917,0.00019452,3]
[351007235,1738282270403,-16092.21294837,0.00019,2]
[351007237,1738282270413,-500.0,0.00019178,2]
[351007239,1738282270423,-500.0,0.00019314,2]
[351007241,1738282270433,-500.0,0.00019314,2]
[351007243,1738282270443,-500.0,0.00019314,2]
[351007245,1738282270453,-500.0,0.00019315,3]
[351007247,1738282270464,-564.84845749,0.00019452,3]
[351007250,1738282270474,-656.44616593,0.00019452,3]
[351007252,1738282270488,-838.89140647,0.00019452,3]
[351007254,1738282270501,-2286.8024276,0.00019452,3]
[351007256,1738282270512,-3279.4,0.00019452,3]
[351007258,1738282270522,-500.0,0.00019452,3]
[351007261,1738282270533,-518.91,0.00019452,3]
[351007263,1738282270543,-1062.63,0.00019452,3]
[351007265,1738282270553,-2155.62,0.00019452,3]
[351007267,1738282270564,-9210.12,0.00019452,3]
[351007269,1738282270574,-859.68,0.00019452,3]
[351007271,1738282270584,-7812.53,0.00019452,3]
[351007273,1738282270594,-696.08,0.00019452,3]
[351007275,1738282270606,-3691.41,0.00019452,3]
[351007277,1738282270616,-2781.71,0.00019452,3]
[351007279,1738282270627,-1005.13,0.00019452,3]
[351007304,1738282270947,-500.0,0.00019452,3]
[351007306,1738282270960,-3087.45,0.00019452,3]
[351007308,1738282270971,-510.09406676,0.00019452,3]
[351007309,1738282270981,-500.0,0.00019452,3]
[351007311,1738282270991,-694.66,0.00019452,3]
[351007313,1738282271002,-793.31,0.00019452,3]
[351007314,1738282271012,-5318.45,0.00019452,3]
[351007316,1738282271022,-1324.42,0.00019452,3]
[351007318,1738282271032,-3055.09,0.00019452,3]
[351007319,1738282271041,-1458.12,0.00019452,3]
[351007321,1738282271051,-528.96,0.00019452,3]
[351007323,1738282271061,-2843.59,0.00019452,3]
[351007324,1738282271072,-4190.59,0.00019452,3]
[351007326,1738282271082,-500.0,0.00019452,3]
[351007328,1738282271091,-1673.2,0.00019452,3]
[351007330,1738282271105,-500.0,0.00019452,3]
[351007331,1738282271115,-500.0,0.00019452,3]
[351007333,1738282271125,-1672.99,0.00019452,3]
[351007335,1738282271135,-610.67,0.00019452,3]
[351007336,1738282271145,-3676.96,0.00019452,3]
[351007338,1738282271162,-2842.0,0.00019452,3]
[351007340,1738282271173,-500.0,0.00019452,3]
[351007342,1738282271184,-737.47,0.00019452,3]
[351007344,1738282271194,-549.58839175,0.00019452,3]
[351007345,1738282271204,-226.46041569,0.00019452,3]
[351007347,1738282271217,-1252.53,0.00019452,3]
[351007349,1738282271227,-2203.31,0.00019452,3]
[351007351,1738282271236,-1572.77,0.00019452,3]
[351007352,1738282271246,-13332.76,0.00019452,3]
[351007354,1738282271256,-932.56,0.00019452,3]
[351007356,1738282271266,-2466.03,0.00019452,3]
[351007358,1738282271276,-500.0,0.00019452,3]
[351007359,1738282271287,-2461.61,0.00019452,3]
[351007361,1738282271297,-500.0,0.00019452,3]
[351007363,1738282271307,-2491.5,0.00019452,3]
[351007365,1738282271318,-510.65326852,0.00019452,3]
[351007366,1738282271327,-500.0,0.00019452,3]
[351007368,1738282271338,-1669.64,0.00019452,3]
[351007370,1738282271348,-3459.82,0.00019452,3]
[351007371,1738282271362,-500.0,0.00019452,3]
[351007373,1738282271372,-8514.26,0.00019452,3]
[351007375,1738282271382,-2472.6,0.00019452,3]
[351007377,1738282271392,-615.04,0.00019452,3]
[351007378,1738282271402,-500.0,0.00019452,3]
[351007380,1738282271411,-517.72387537,0.00019452,3]
[351007382,1738282271422,-500.0,0.00019452,3]
[351007383,1738282271431,-500.0,0.00019452,3]
[351007385,1738282271441,-3035.07,0.00019452,3]
[351007387,1738282271451,-500.0,0.00019452,3]
[351007389,1738282271461,-3151.93,0.00019452,3]
[351007390,1738282271471,-752.6,0.00019452,3]
[351007392,1738282271480,-946.02,0.00019452,3]
[351007394,1738282271490,-615.11,0.00019452,3]
[351007395,1738282271500,-5307.17,0.00019452,3]
[351007397,1738282271511,-500.0,0.00019452,3]
[351007398,1738282271520,-500.0,0.00019452,3]
[351007399,1738282271530,-500.0,0.00019452,3]
[351007400,1738282271540,-1389.36,0.00019452,3]
[351007401,1738282271550,-500.0,0.00019452,3]
[351007402,1738282271560,-500.0,0.00019452,3]
[351007403,1738282271569,-838.18,0.00019452,3]
[351007404,1738282271579,-1112.47,0.00019452,3]
[351007405,1738282271589,-500.0,0.00019452,3]
[351007407,1738282271599,-500.0,0.00019452,3]
[351007409,1738282271610,-1217.3,0.00019452,3]
[351007411,1738282271620,-5473.6,0.00019452,3]
[351007413,1738282271629,-500.0,0.00019452,3]
[351007415,1738282271639,-500.0,0.00019452,3]
[351007417,1738282271648,-500.0,0.00019452,3]
[351007419,1738282271658,-500.0,0.00019452,3]
[351007421,1738282271669,-712.18,0.00019452,3]
[351007423,1738282271678,-573.31,0.00019452,3]
[351007425,1738282271690,-2567.47,0.00019452,3]
[351007427,1738282271700,-643.25,0.00019452,3]
[351007429,1738282271710,-500.0,0.00019452,3]
[351007431,1738282271719,-4858.91,0.00019452,3]
[351007433,1738282271731,-500.0,0.00019452,3]
[351007435,1738282271740,-500.0,0.00019452,3]
[351007437,1738282271750,-890.24,0.00019452,3]
[351007439,1738282271760,-1726.39,0.00019452,3]
[351007442,1738282271771,-500.0,0.00019452,3]
[351007444,1738282271782,-1038.5,0.00019452,3]
[351007446,1738282271791,-893.88,0.00019452,3]
[351007448,1738282271801,-1436.67,0.00019452,3]
[351007450,1738282271810,-2827.86,0.00019452,3]
[351007452,1738282271820,-500.0,0.00019452,3]
[351007454,1738282271830,-627.03,0.00019452,3]
[351007456,1738282271840,-500.0,0.00019452,3]
[351007458,1738282271851,-500.0,0.00019452,3]
[351007460,1738282271861,-500.0,0.00019452,3]
[351007462,1738282271871,-500.0,0.00019452,3]
[351007464,1738282271881,-859.77,0.00019452,3]
[351007466,1738282271891,-500.0,0.00019452,3]
[351007468,1738282271901,-1018.78,0.00019452,3]
[351007470,1738282271911,-2163.85,0.00019452,3]
[351007472,1738282271921,-500.0,0.00019452,3]
[351007475,1738282271931,-1088.02,0.00019452,3]
[351007477,1738282271941,-1275.59,0.00019452,3]
[351007479,1738282271951,-500.0,0.00019452,3]
[351007481,1738282271961,-545.79,0.00019452,3]
[351007483,1738282271971,-862.91,0.00019452,3]
[351007485,1738282271981,-500.0,0.00019452,3]
[351007487,1738282271991,-500.0,0.00019452,3]
[351007489,1738282272001,-1442.45,0.00019452,3]
[351007491,1738282272012,-500.0,0.00019452,3]
[351007493,1738282272022,-500.0,0.00019452,3]
[351007495,1738282272032,-1046.15,0.00019452,3]
[351007497,1738282272042,-500.0,0.00019452,3]
[351007499,1738282272052,-539.31,0.00019452,3]
[351007501,1738282272063,-2026.37,0.00019452,3]
[351007503,1738282272073,-709.55,0.00019452,2]
[351007505,1738282272082,-708.32,0.00019452,3]
[351007508,1738282272092,-2950.82,0.00019452,3]
[351007510,1738282272102,-500.0,0.00019452,3]
[351007512,1738282272112,-757.7,0.00019452,3]
[351007514,1738282272123,-1866.75,0.00019452,3]
[351007516,1738282272133,-401.65599928,0.00019452,3]
[351007518,1738282272142,-1161.21,0.00019452,3]
[351007520,1738282272152,-910.43,0.00019452,3]
[351007522,1738282272162,-500.0,0.00019452,3]
[351007524,1738282272173,-2734.34,0.00019452,3]
[351007526,1738282272183,-3754.21,0.00019452,3]
[351007528,1738282272193,-1311.32,0.00019452,3]
[351007530,1738282272203,-500.0,0.00019452,3]
[351007532,1738282272213,-6127.24,0.00019452,3]
[351007534,1738282272222,-500.0,0.00019452,3]
[351007537,1738282272237,-240.74842453,0.0001947,2]
[351007539,1738282272246,-150.0,0.00019483,2]
[351007541,1738282272256,-150.0,0.00019485,2]
[351007543,1738282272266,-150.0,0.000195,2]
[351007545,1738282272275,-1000.0,0.00019506,2]
[351007547,1738282272285,-201.2222395,0.0001952,2]
[351007549,1738282272295,-472.10055214,0.0001952,2]
[351007551,1738282272304,-1569.45204854,0.0001952,2]
[351007553,1738282272314,-9535.85604153,0.0001952,2]
[351007555,1738282272324,-1000.0,0.00019521,2]
[351007557,1738282272334,-272.77530802,0.00019534,2]
[351007559,1738282272344,-211.0,0.0001955,2]
[351007561,1738282272355,-150.0,0.00019553,2]
[351007563,1738282272365,-150.0,0.00019557,2]
[351007565,1738282272375,-217.0,0.0001956,2]
[351007568,1738282272385,-150.0,0.00019562,2]
[351007570,1738282272396,-205.0,0.0001957,2]
[351007572,1738282272405,-734.59,0.00019584,2]
[351007574,1738282272415,-300.0,0.00019588,2]
[351007576,1738282272424,-850.993016,0.00019589,3]
[351007578,1738282272434,-158.632231,0.00019589,3]
[351007580,1738282272444,-155.847334,0.00019589,3]
[351007582,1738282272454,-1616.204201,0.00019589,3]
[351007584,1738282272463,-511.26747415,0.00019589,3]
[351007586,1738282272473,-500.0,0.00019589,3]
[351007588,1738282272482,-934.69,0.00019589,3]
[351007590,1738282272492,-1224.98,0.00019589,3]
[351007592,1738282272502,-500.0,0.00019589,3]
[351007594,1738282272511,-730.27,0.00019589,3]
[351007596,1738282272521,-1235.83,0.00019589,3]
[351007598,1738282272530,-1029.32,0.00019589,3]
[351007600,1738282272542,-500.0,0.00019589,3]
[351007602,1738282272551,-500.0,0.00019589,3]
[351007604,1738282272560,-500.0,0.00019589,3]
[351007605,1738282272570,-500.0,0.00019589,3]
[351007606,1738282272579,-986.18,0.00019589,3]
[351007607,1738282272588,-500.0,0.00019589,3]
[351007608,1738282272598,-500.0,0.00019589,3]
[351007609,1738282272609,-766.7,0.00019589,3]
[351007610,1738282272619,-778.04,0.00019589,3]
[351007612,1738282272629,-500.0,0.00019589,3]
[351007614,1738282272638,-500.0,0.00019589,3]
[351007616,1738282272648,-500.0,0.00019589,3]
[351007618,1738282272657,-872.39,0.00019589,3]
[351007620,1738282272668,-507.48039329,0.00019589,3]
[351007622,1738282272678,-500.0,0.00019589,3]
[351007625,1738282272689,-1043.16,0.00019589,3]
[351007627,1738282272701,-652.48,0.00019589,3]
[351007629,1738282272711,-500.0,0.00019589,3]
[351007631,1738282272721,-1066.89,0.00019589,3]
[351007633,1738282272731,-500.0,0.00019589,3]
[351007634,1738282272741,-615.14,0.00019589,3]
[351007636,1738282272750,-500.0,0.00019589,3]
[351007639,1738282272760,-500.0,0.00019589,3]
[351007641,1738282272771,-640.21,0.00019589,3]
[351007643,1738282272781,-659.89,0.00019589,3]
[351007645,1738282272791,-530.34,0.00019589,3]
[351007646,1738282272800,-500.0,0.00019589,3]
[351007649,1738282272809,-500.0,0.00019589,3]
[351007651,1738282272820,-500.0,0.00019589,3]
[351007653,1738282272830,-500.0,0.00019589,3]
[351007655,1738282272840,-544.17,0.00019589,3]
[351007657,1738282272852,-1346.25,0.00019589,3]
[351007659,1738282272863,-500.0,0.00019589,3]
[351007661,1738282272873,-500.0,0.00019589,3]
[351007663,1738282272883,-500.0,0.00019589,3]
[351007665,1738282272893,-500.0,0.00019589,3]
[351007667,1738282272903,-500.0,0.00019589,3]
[351007669,1738282272913,-500.0,0.00019589,3]
[351007671,1738282272923,-500.0,0.00019589,3]
[351007673,1738282272933,-500.0,0.00019589,3]
[351007675,1738282272943,-500.0,0.00019589,3]
[351007677,1738282272954,-500.0,0.00019589,3]
[351007679,1738282272966,-1027.38,0.00019589,3]